bitfinex/quotes_ETHUSD_20251017
["timestamp","ask_amount","ask_price","bid_price","bid_amount"]
[1760691298799,2.9824,3716.6,3716.3,0.001]
[1760691298999,3.4102,3716.6,3716.3,0.001]
[1760691299203,0.4278,3716.5,3716.3,0.001]
[1760691299389,2.1558,3716.5,3716.3,0.001]
[1760691299589,2.41706025,3716.5,3716.3,0.001]
[1760691299792,2.46396828,3716.5,3716.3,0.001]
[1760691301187,0.433,3716.4,3716.3,0.001]
[1760691301584,2.848,3716.4,3716.3,0.001]
[1760691301792,3.281,3716.4,3716.3,0.001]
[1760691302688,2.848,3716.4,3716.3,0.001]
[1760691302889,3.281,3716.4,3716.3,0.001]
[1760691303143,5.009,3716.4,3716.3,0.001]
[1760691303793,7.69977601,3716.4,3716.3,0.001]
[1760691303988,7.69977601,3716.4,3715.9,0.001]
[1760691303989,2.3616,3716.3,3715.9,0.001]
[1760691304223,2.69135536,3715.6,3715.5,0.001]
[1760691304411,1.8624,3715.5,3713.7,0.1344]
[1760691304611,1.8624,3715.5,3714.3,2.69228766]
[1760691304612,0.1344,3714.5,3714.3,2.69228766]
[1760691304822,2.848,3714.4,3714.3,3.23076909]
[1760691305201,0.42231017,3715.1,3715.0,2.69179004]
[1760691305547,3.27031017,3715.1,3715.0,2.69179004]
[1760691305723,0.182,3716.1,3714.5,2.69215237]
[1760691306026,0.182,3716.1,3715.2,2.69162212]
[1760691306027,0.2159,3715.8,3715.2,2.69162212]
[1760691306330,0.2159,3715.8,3715.3,2.69155379]
[1760691306517,0.2159,3715.8,3714.7,2.6919845]
[1760691306518,0.42221454,3715.7,3715.4,2.69149345]
[1760691307023,2.848,3715.6,3715.5,2.6913957]
[1760691307598,2.848,3715.6,3715.5,3.23238404]
[1760691307835,2.848,3715.6,3715.5,2.6913957]
[1760691308324,2.848,3715.6,3715.5,3.1364957]
[1760691308713,2.848,3715.6,3715.5,2.6913957]
[1760691309318,2.848,3715.6,3715.5,3.1364957]
[1760691309524,0.04691559,3715.8,3715.7,2.69128293]
[1760691310555,0.42214461,3716.6,3715.8,2.6912105]
[1760691310840,0.42214461,3716.6,3716.5,2.69070361]
[1760691312042,0.42214461,3716.6,3715.7,0.4451]
[1760691312043,0.88914461,3716.6,3716.0,2.69099533]
[1760691312228,0.2159,3716.9,3715.6,0.4451]
[1760691312432,0.04690362,3717.1,3715.6,0.4451]
[1760691312433,2.848,3716.8,3716.7,2.69055882]
[1760691313537,2.848,3716.8,3716.7,3.1625644]
[1760691313740,2.848,3716.8,3716.7,3.13565882]
[1760691314037,2.848,3716.8,3716.7,2.69055882]
[1760691314439,0.002,3717.2,3717.1,2.69026929]
[1760691314871,0.002,3717.6,3717.5,2.68997982]
[1760691315419,0.4663,3717.6,3716.7,2.69055882]
[1760691315745,0.4663,3717.6,3716.6,0.1774]
[1760691316051,2.848,3717.5,3717.2,2.69018668]
[1760691316266,2.848,3717.5,3717.3,2.69008083]
[1760691316549,3.26999942,3717.5,3717.4,2.69005218]
[1760691316872,3.26999942,3717.5,3717.4,3.22807409]
[1760691316873,2.848,3717.5,3717.4,3.22807409]
[1760691317079,2.848,3717.5,3716.7,2.69053235]
[1760691317285,2.848,3717.5,3717.4,2.69005218]
[1760691317591,2.848,3717.5,3717.0,2.69027716]
[1760691317774,0.4644,3717.4,3716.6,0.1774]
[1760691317945,0.4644,3717.4,3715.9,2.86846609]
[1760691318149,0.42201382,3717.3,3716.0,0.32404019]
[1760691318351,0.42201382,3717.3,3715.9,0.1774]
[1760691318689,0.42201382,3717.3,3716.0,0.4451]
[1760691318893,1.728,3717.4,3716.0,0.4451]
[1760691319062,0.4644,3717.3,3715.9,0.1774]
[1760691319252,0.4644,3717.3,3715.6,2.6913249]
[1760691319587,0.04689813,3717.0,3715.6,3.00496739]
[1760691319796,0.04689813,3717.0,3716.9,2.69041405]
[1760691320177,0.04689813,3717.0,3716.0,0.4451]
[1760691320366,0.04689813,3717.0,3716.9,2.69041405]
[1760691320560,0.04689813,3717.0,3716.3,2.69079567]
[1760691320770,2.848,3717.5,3717.0,2.69031756]
[1760691321076,0.4644,3717.4,3716.8,2.69045377]
[1760691321284,2.89489477,3717.5,3717.4,2.69005218]
[1760691321893,3.34289477,3717.5,3716.8,0.1774]
[1760691322092,3.34289477,3717.5,3716.1,0.1774]
[1760691322252,3.34289477,3717.5,3716.2,2.92626017]
[1760691322455,3.34289477,3717.5,3716.9,2.69035791]
[1760691322883,3.34289477,3717.5,3716.2,0.23536]
[1760691323188,0.87003966,3717.4,3716.6,2.69057565]
[1760691323486,0.87003966,3717.4,3716.1,0.1774]
[1760691323687,0.87003966,3717.4,3716.5,2.69066709]
[1760691323889,0.2178,3716.6,3716.1,2.69096921]
[1760691324048,3.295,3716.5,3715.6,0.31364249]
[1760691324248,3.295,3716.5,3715.1,0.6107]
[1760691324470,0.42214055,3716.4,3715.1,0.6107]
[1760691324974,0.42214055,3716.4,3716.3,2.69084842]
[1760691325168,0.42214055,3716.4,3716.0,0.1344]
[1760691325373,0.448,3716.3,3715.7,2.69126375]
[1760691325622,0.448,3716.3,3715.8,0.1344]
[1760691325769,0.2178,3715.9,3715.4,0.1344]
[1760691325969,2.847,3715.8,3715.0,2.69278997]
[1760691326170,2.847,3715.8,3715.0,2.96206146]
[1760691326495,0.42219666,3715.7,3715.1,0.1625]
[1760691326680,2.847,3715.8,3715.7,2.69128293]
[1760691326883,2.847,3715.8,3715.1,0.6107]
[1760691326884,2.847,3715.8,3715.5,2.69136477]
[1760691327070,2.847,3715.8,3715.1,0.1625]
[1760691327480,2.847,3715.8,3715.7,2.69128293]
[1760691327820,2.847,3715.8,3715.2,0.31245985]
[1760691328131,2.847,3715.8,3715.0,2.69272824]
[1760691328289,0.448,3715.7,3715.1,2.69166348]
[1760691328487,0.87018679,3715.7,3715.1,0.001]
[1760691328705,2.15018679,3715.7,3715.1,0.001]
[1760691328876,3.26918679,3715.7,3715.6,2.69135536]
[1760691329077,2.847,3715.7,3715.6,2.9604909]
[1760691329284,2.847,3716.2,3715.6,0.26913554]
[1760691329505,0.04690984,3716.5,3715.4,2.6914431]
[1760691329707,0.04690984,3716.5,3715.1,0.2281]
[1760691329905,0.04690984,3716.5,3715.1,0.001]
[1760691329906,1.728,3716.1,3715.1,0.001]
[1760691330094,1.728,3716.4,3715.1,0.001]
[1760691330411,1.728,3716.4,3715.1,2.69265609]
[1760691330600,2.6910283,3716.1,3715.1,0.001]
[1760691330934,1.728,3715.2,3715.1,0.001]
[1760691331245,2.73792788,3716.1,3715.1,0.001]
[1760691331246,0.68052062,3716.1,3715.2,0.2271]
[1760691331512,0.04692062,3716.1,3716.0,2.69106566]
[1760691331677,0.04692062,3716.1,3715.9,2.69112937]
[1760691331899,0.353,3716.0,3715.1,0.001]
[1760691332098,2.847,3715.9,3715.1,0.001]
[1760691332299,3.0648,3715.9,3715.2,2.6915962]
[1760691332637,2.847,3715.9,3715.3,0.2271]
[1760691332825,2.9754,3715.9,3715.1,0.001]
[1760691333179,0.86376938,3715.8,3715.1,0.001]
[1760691333449,2.59176938,3715.8,3715.1,0.001]
[1760691333600,2.69138439,3715.6,3715.1,0.001]
[1760691333799,1.77492263,3715.7,3715.1,0.001]
[1760691334045,0.4416,3715.5,3715.1,0.001]
[1760691334256,4.41993496,3714.8,3714.7,0.001]
[1760691334405,4.575,3714.8,3714.7,0.001]
[1760691334749,5.0142,3714.8,3714.7,0.001]
[1760691334912,5.43657453,3714.8,3714.7,0.001]
[1760691335306,3.26937453,3714.8,3714.7,0.001]
[1760691335503,3.26937453,3714.8,3714.7,2.69300742]
[1760691335925,3.70617453,3714.8,3714.7,0.001]
[1760691336126,3.26937453,3714.8,3714.7,0.001]
[1760691336301,2.847,3714.8,3714.7,2.96242176]
[1760691336941,2.847,3714.8,3714.7,3.41062176]
[1760691337439,2.847,3715.5,3715.4,2.69150024]
[1760691337941,2.847,3715.5,3715.1,0.2271]
[1760691338243,2.847,3715.5,3714.7,0.001]
[1760691338958,0.42222802,3715.4,3714.9,2.69183852]
[1760691339164,0.42222802,3715.4,3714.7,0.001]
[1760691339504,0.42222802,3715.4,3715.1,2.69166015]
[1760691339632,0.42222802,3715.4,3714.7,0.001]
[1760691339811,0.42222802,3715.4,3715.1,2.69169905]
[1760691340143,0.42222802,3715.4,3714.8,2.69193496]
[1760691340307,2.847,3715.3,3715.2,2.69157548]
[1760691340743,2.847,3715.3,3715.1,2.69167586]
[1760691341246,2.847,3715.3,3715.2,2.69164513]
[1760691341549,2.847,3715.3,3715.0,2.69178967]
[1760691341939,2.847,3715.3,3715.0,2.69173427]
[1760691342650,2.847,3715.3,3714.9,2.6918362]
[1760691342824,2.847,3715.3,3715.0,2.69174721]
[1760691343023,3.2853,3715.3,3714.7,0.001]
[1760691343224,2.847,3715.3,3714.7,2.69297608]
[1760691343431,2.847,3715.3,3714.7,0.001]
[1760691344045,0.209,3714.8,3714.7,0.001]
[1760691344227,3.056,3714.8,3714.7,0.001]
[1760691344734,2.847,3715.6,3715.5,2.69136793]
[1760691344934,2.847,3715.6,3715.5,2.6914278]
[1760691345142,2.847,3715.6,3715.5,3.1396278]
[1760691345332,2.847,3716.0,3715.9,2.69113808]
[1760691345528,2.847,3716.0,3715.9,3.13933808]
[1760691345726,2.847,3716.0,3715.9,3.54332984]
[1760691346540,2.847,3716.0,3715.9,3.67772984]
[1760691346930,1.728,3715.9,3714.6,0.2228]
[1760691347127,0.1344,3715.7,3714.7,0.001]
[1760691347340,0.1344,3715.0,3714.7,0.001]
[1760691347562,2.847,3714.9,3714.7,0.001]
[1760691347980,2.847,3714.9,3714.8,2.69193496]
[1760691348152,2.847,3714.9,3714.8,3.36493267]
[1760691348835,2.847,3714.9,3714.8,2.82633496]
[1760691351663,0.002,3715.3,3715.2,2.69164513]
[1760691351864,0.002,3715.3,3715.2,3.18666158]
[1760691352045,0.002,3715.3,3715.2,3.29414513]
[1760691352244,0.002,3715.3,3715.2,3.32106158]
[1760691352443,0.002,3715.3,3715.2,14.06370864]
[1760691352649,0.002,3715.3,3715.2,6.55225564]
[1760691352832,0.002,3715.3,3715.2,4.18679064]
[1760691353143,0.0012,3715.3,3715.2,6.60179064]
[1760691353361,0.0012,3715.3,3715.2,13.13954564]
[1760691353766,0.0012,3715.3,3715.2,10.59552564]
[1760691353961,0.0012,3715.3,3715.2,10.18471964]
[1760691354162,0.0012,3715.3,3715.2,4.18679064]
[1760691355066,0.0012,3715.3,3715.2,8.35546764]
[1760691355449,0.002,3716.1,3716.0,2.69106566]
[1760691355648,0.002,3716.1,3716.0,3.22928747]
[1760691355883,0.002,3716.1,3716.0,3.36368747]
[1760691356080,0.002,3716.1,3716.0,5.86984147]
[1760691356235,0.002,3716.1,3716.0,3.83178747]
[1760691356442,0.002,3716.1,3716.0,8.65422147]
[1760691356687,0.002,3716.1,3716.0,14.97794047]
[1760691356836,0.002,3716.1,3716.0,12.13194047]
[1760691357778,0.002,3716.1,3716.0,14.10292147]
[1760691358068,0.002,3716.1,3716.0,3.22928747]
[1760691358374,0.002,3716.1,3716.0,13.47162712]
[1760691358550,0.002,3716.1,3716.0,15.80631647]
[1760691358752,0.002,3717.2,3717.1,10.68739629]
[1760691358937,0.002,3717.2,3717.1,12.21407154]
[1760691359142,0.002,3717.2,3717.1,12.19846854]
[1760691359373,0.002,3717.2,3717.1,7.91248254]
[1760691359769,0.002,3717.2,3717.1,11.09090654]
[1760691359977,0.002,3717.2,3717.1,10.09090654]
[1760691360270,0.002,3717.2,3717.1,7.63701154]
[1760691360447,0.002,3717.2,3717.1,9.29898854]
[1760691360649,0.002,3717.2,3717.1,8.51035854]
[1760691360861,0.002,3717.2,3717.1,10.27402954]
[1760691361085,0.002,3717.2,3717.1,4.02804454]
[1760691361246,0.002,3717.2,3717.1,2.69026929]
[1760691361452,0.002,3717.2,3717.1,5.36467598]
[1760691361650,0.002,3717.2,3717.1,5.33777329]
[1760691361851,0.002,3717.2,3717.1,18.49552829]
[1760691362149,0.002,3717.2,3717.1,14.28679729]
[1760691362361,0.002,3717.2,3717.1,16.26911264]
[1760691362975,0.002,3717.2,3717.1,21.11144364]
[1760691363169,0.002,3717.2,3717.1,20.47784364]
[1760691363356,0.002,3717.2,3717.1,5.31588464]
[1760691363558,0.002,3717.2,3717.1,9.41147129]
[1760691363953,0.002,3717.2,3717.1,6.17956929]
[1760691364286,1e-08,3717.6,3717.5,17.85193882]
[1760691364498,1e-08,3717.6,3717.5,12.48208682]
[1760691364862,1e-08,3717.6,3717.5,12.93648682]
[1760691365186,1e-08,3717.6,3717.5,14.768162]
[1760691365391,0.3828,3719.9,3718.8,2.68903947]
[1760691365684,0.2281,3718.9,3718.7,2.68909633]
[1760691365901,0.2281,3718.9,3718.3,2.845]
[1760691366115,0.002,3719.6,3718.8,2.68903947]
[1760691366273,0.002,3719.6,3719.1,2.68882256]
[1760691366620,0.002,3719.6,3719.1,2.87772256]
[1760691366783,0.002,3719.6,3719.1,2.68882256]
[1760691367271,0.002,3719.6,3719.1,3.80371078]
[1760691367470,0.002,3719.6,3719.1,19.95970156]
[1760691367804,0.002,3719.6,3719.1,2.82322256]
[1760691368101,0.377,3719.2,3717.7,2.845]
[1760691368314,0.377,3719.2,3718.0,2.68961807]
[1760691368517,0.377,3719.2,3718.7,2.68910354]
[1760691368701,0.2312,3718.8,3718.7,2.68910354]
[1760691368868,0.6062,3718.8,3717.5,7.97109]
[1760691369073,0.2312,3718.8,3717.6,3.66800807]
[1760691369272,0.2312,3718.8,3718.7,2.68911178]
[1760691369521,0.002,3719.2,3718.9,2.68896716]
[1760691369522,0.2312,3719.0,3718.9,2.68896716]
[1760691369800,0.2312,3719.0,3718.8,2.68897664]
[1760691370000,0.2312,3719.0,3718.9,2.68896716]
[1760691370302,0.6062,3719.0,3717.7,2.6898014]
[1760691370616,0.375,3718.9,3718.3,2.6893964]
[1760691370828,0.375,3718.9,3718.4,0.02689328]
[1760691371024,0.2312,3719.0,3717.6,2.68986111]
[1760691371025,0.375,3718.8,3717.9,2.68965747]
[1760691371332,0.375,3718.7,3716.6,0.1889]
[1760691371624,0.375,3718.7,3716.3,2.69084818]
[1760691371625,0.6336,3718.4,3717.1,2.69025697]
[1760691371778,3.2168,3718.3,3717.2,0.02690196]
[1760691372128,3.2168,3718.3,3716.4,3.14514621]
[1760691372295,3.2168,3718.3,3717.1,2.69026164]
[1760691372296,2.844,3718.3,3717.1,2.69026164]
[1760691372499,0.3728,3718.2,3717.1,2.69026164]
[1760691372721,0.2312,3717.2,3716.5,0.33340462]
[1760691372917,0.3728,3717.1,3715.4,0.4544]
[1760691373088,0.3728,3717.1,3716.3,2.69079497]
[1760691373438,0.3728,3717.1,3715.7,14.057468]
[1760691373588,0.3728,3717.0,3715.8,1.83127262]
[1760691373791,0.2312,3715.9,3714.8,0.001]
[1760691374009,0.2312,3715.9,3715.3,2.69156169]
[1760691374188,0.3713,3715.8,3714.8,0.001]
[1760691374505,0.3713,3716.3,3715.8,2.6912105]
[1760691374706,0.2312,3716.7,3716.4,2.69076132]
[1760691374907,0.3713,3716.6,3714.7,1.729]
[1760691375105,0.3713,3716.6,3716.2,2.69090934]
[1760691375425,0.2312,3716.7,3715.6,2.69135536]
[1760691375620,0.2312,3716.7,3716.6,2.69063122]
[1760691375820,0.42209874,3716.8,3715.7,13.56315]
[1760691376117,0.42209874,3716.8,3715.6,0.4544]
[1760691376323,0.42209874,3716.8,3716.7,2.69055882]
[1760691376518,0.79339874,3716.8,3715.8,2.6912105]
[1760691376696,0.42209874,3716.8,3716.7,2.69055882]
[1760691376897,1.728,3717.1,3716.3,2.69084842]
[1760691377220,0.2312,3717.2,3716.2,0.1889]
[1760691377420,0.2312,3717.2,3717.1,2.69026929]
[1760691377740,0.6024,3717.2,3715.8,2.844]
[1760691377897,0.6024,3717.2,3716.7,0.1344]
[1760691378092,0.2312,3717.2,3717.0,2.69032109]
[1760691378399,0.3712,3717.1,3715.9,0.34776]
[1760691378716,0.3712,3717.1,3716.7,0.1344]
[1760691378922,0.2312,3717.2,3716.7,0.1344]
[1760691378923,0.3712,3717.0,3716.7,0.1344]
[1760691379229,0.3712,3716.9,3715.6,1.728]
[1760691380030,0.3712,3716.9,3716.0,2.69106122]
[1760691380210,30.117128,3716.6,3714.9,0.48774465]
[1760691380409,1.728,3716.4,3714.9,0.02691862]
[1760691380716,1.728,3716.4,3715.0,2.69179004]
[1760691380933,3.4464,3716.5,3715.6,1.728]
[1760691381118,3.4464,3716.5,3715.5,2.69136709]
[1760691381119,0.6024,3716.5,3715.3,1.728]
[1760691381317,1.39,3716.4,3715.7,2.69123434]
[1760691381523,1.39,3716.4,3714.7,0.001]
[1760691381696,0.3712,3716.3,3715.1,2.69165381]
[1760691381902,0.3712,3716.3,3714.7,0.001]
[1760691381903,0.3712,3716.2,3715.2,2.69163822]
[1760691382201,0.3712,3716.1,3714.7,0.001]
[1760691382425,0.3712,3716.1,3715.0,2.69172916]
[1760691382631,0.04691044,3716.3,3715.1,0.45817292]
[1760691382797,0.04691044,3716.3,3715.6,2.69134992]
[1760691383140,0.27810987,3716.5,3715.6,2.69135536]
[1760691383300,0.27810987,3716.5,3715.5,1.729]
[1760691383301,0.46904018,3716.5,3716.4,2.69077601]
[1760691383500,0.2312,3717.2,3716.6,2.69062492]
[1760691383501,1.0542,3717.2,3716.6,2.69062492]
[1760691383701,1.0542,3717.2,3716.5,2.69069027]
[1760691383910,0.42206225,3717.2,3717.1,2.87916929]
[1760691384139,0.9845,3718.9,3717.2,1.728]
[1760691384339,0.536,3718.9,3718.4,2.68929363]
[1760691384637,0.002,3718.9,3718.8,2.68903947]
[1760691384933,0.002,3718.9,3718.8,3.22954658]
[1760691385134,0.002,3718.9,3718.8,8.29226297]
[1760691385337,0.002,3718.9,3718.8,8.89897258]
[1760691385537,0.002,3718.9,3718.8,4.95754658]
[1760691385834,0.002,3718.9,3718.8,3.22954658]
[1760691386039,0.002,3718.9,3718.8,2.68903947]
[1760691386199,0.002,3718.9,3718.1,1.9498]
[1760691386402,0.002,3718.9,3717.7,3.5039]
[1760691386403,0.1574,3718.9,3717.7,3.5039]
[1760691386603,0.002,3718.9,3718.8,2.68903947]
[1760691386830,0.002,3718.9,3717.8,4.77084276]
[1760691387032,0.002,3718.9,3718.0,2.68956334]
[1760691387231,0.002,3718.9,3718.6,2.68915854]
[1760691387434,0.002,3718.9,3717.9,0.82747428]
[1760691387637,0.2343,3718.9,3717.9,0.82747428]
[1760691387936,0.2343,3718.9,3718.3,2.6893462]
[1760691388140,0.3761,3718.8,3717.3,0.2218]
[1760691388301,0.3761,3718.8,3718.1,2.68953142]
[1760691388502,0.3761,3718.8,3717.9,2.68968378]
[1760691388503,0.3761,3718.8,3717.3,0.2218]
[1760691388707,0.3761,3718.8,3718.1,2.68947904]
[1760691388908,0.002,3718.9,3717.7,0.4381]
[1760691389112,0.002,3718.9,3718.7,0.1344]
[1760691389450,0.002,3718.9,3718.8,2.82343947]
[1760691389915,0.002,3718.9,3718.8,3.37470091]
[1760691390116,0.002,3718.9,3718.8,5.54080091]
[1760691390316,0.002,3718.9,3718.8,14.38859291]
[1760691391011,0.002,3718.9,3718.8,21.20195991]
[1760691391213,0.002,3718.9,3718.8,16.99297391]
[1760691391534,0.002,3718.9,3718.8,3.24030091]
[1760691391713,0.002,3718.9,3718.1,0.4381]
[1760691391907,0.002,3718.9,3717.4,2.69005218]
[1760691391908,0.4522,3718.8,3717.4,2.69005218]
[1760691392148,0.4522,3718.8,3718.1,2.68949132]
[1760691392349,0.4522,3718.8,3718.2,2.6894462]
[1760691392519,0.4522,3718.8,3718.2,2.68942014]
[1760691393064,0.2343,3718.9,3716.5,0.26906903]
[1760691393065,0.6336,3718.5,3716.5,0.26906903]
[1760691393263,0.4522,3718.4,3716.7,2.69055882]
[1760691393540,0.4522,3718.4,3716.5,0.4381]
[1760691393541,1.728,3718.2,3716.5,0.4381]
[1760691393752,1.728,3718.2,3717.7,2.68977905]
[1760691394043,1.728,3718.2,3717.0,2.69034167]
[1760691394044,3.26494652,3718.3,3717.2,0.2218]
[1760691394246,0.002,3718.9,3717.4,2.69005218]
[1760691394430,0.42187306,3718.7,3717.3,0.4381]
[1760691394606,0.4522,3718.8,3717.4,0.66050052]
[1760691394812,0.002,3718.9,3718.8,2.68903947]
[1760691395041,0.2343,3718.9,3718.4,2.6892768]
[1760691395206,0.4522,3718.8,3718.4,2.68932707]
[1760691395412,0.002,3718.9,3718.6,2.68915829]
[1760691395640,0.002,3718.9,3718.8,2.68903947]
[1760691397359,0.002,3718.9,3718.6,0.26891583]
[1760691397559,0.2343,3718.9,3717.7,0.4381]
[1760691397740,0.6865,3718.9,3717.7,0.4381]
[1760691397935,0.6865,3718.9,3718.4,2.68927528]
[1760691398157,0.4522,3718.8,3717.5,0.4381]
[1760691398338,0.49907578,3718.8,3718.2,2.68941483]
[1760691398538,0.49907578,3718.8,3718.0,2.68955252]
[1760691399471,0.49907578,3718.8,3717.2,0.2218]
[1760691399772,0.49907578,3718.8,3718.2,2.68945905]
[1760691399958,2.398,3718.7,3718.2,2.68945905]
[1760691400357,2.398,3718.7,3718.3,0.1344]
[1760691400666,2.1802,3718.6,3717.3,0.23879]
[1760691400868,1.728,3718.4,3716.0,0.1889]
[1760691401068,0.2323,3717.4,3717.2,0.1344]
[1760691401272,2.9764,3717.3,3716.7,0.1344]
[1760691401768,0.2323,3716.8,3715.5,0.001]
[1760691401936,1.728,3716.5,3715.5,0.001]
[1760691402134,0.2323,3716.8,3715.6,0.1344]
[1760691402135,0.1344,3716.2,3715.6,0.1344]
[1760691402333,0.2323,3715.7,3715.5,0.001]
[1760691402564,4.57,3715.6,3715.5,0.001]
[1760691402766,4.8485,3715.6,3715.5,0.001]
[1760691402929,4.57,3715.6,3715.5,0.001]
[1760691403132,4.8485,3715.6,3715.5,0.001]
[1760691403344,4.57,3715.6,3715.5,0.001]
[1760691403769,4.8485,3715.6,3715.5,0.001]
[1760691403929,8.17345536,3715.6,3715.1,0.001]
[1760691404128,0.6336,3714.9,3714.8,0.001]
[1760691404373,0.2308,3714.9,3714.8,0.001]
[1760691404554,5.0788,3714.9,3714.8,0.001]
[1760691404990,5.50113063,3714.9,3714.8,0.001]
[1760691405141,0.42233063,3714.9,3714.8,0.001]
[1760691405335,3.26433063,3714.9,3714.8,0.001]
[1760691405535,3.26433063,3714.9,3714.8,2.96244033]
[1760691405536,2.842,3714.9,3714.8,2.96244033]
[1760691405951,2.842,3715.5,3715.3,2.69157268]
[1760691406175,2.842,3715.5,3714.8,3.40048973]
[1760691406363,0.42221296,3716.2,3715.4,2.69150024]
[1760691406561,2.842,3716.1,3715.2,0.1889]
[1760691406762,1.728,3716.0,3715.2,0.52077344]
[1760691406967,1.728,3716.0,3715.2,0.1889]
[1760691407191,1.728,3716.0,3715.5,2.69139526]
[1760691407391,1.728,3716.0,3714.8,0.001]
[1760691407392,0.2323,3715.3,3714.8,0.001]
[1760691407549,0.6336,3715.0,3714.8,0.001]
[1760691407885,2.843,3715.2,3714.8,0.001]
[1760691407886,1.728,3714.9,3714.8,0.001]
[1760691408262,0.42235174,3715.0,3714.8,0.001]
[1760691408464,0.2323,3717.4,3714.8,0.001]
[1760691408465,2.88992552,3714.9,3714.8,0.001]
[1760691408663,1.091,3714.9,3714.8,0.001]
[1760691408869,1.091,3714.9,3714.8,2.69293496]
[1760691409190,0.65458221,3716.8,3715.3,2.69157268]
[1760691409351,1.243,3716.7,3715.4,0.1909]
[1760691409549,0.32340718,3716.6,3714.8,0.97780828]
[1760691409860,0.2765,3716.5,3714.8,0.53970828]
[1760691410065,0.2765,3716.5,3714.8,0.001]
[1760691410260,0.6336,3716.4,3714.8,0.001]
[1760691410450,0.2765,3716.5,3714.9,2.69186249]
[1760691410666,0.2765,3716.5,3714.8,0.001]
[1760691410885,0.04691297,3716.1,3714.8,0.001]
[1760691411083,1.728,3715.9,3714.9,2.69185745]
[1760691411284,0.2323,3715.8,3714.8,0.001]
[1760691411478,0.2323,3715.8,3714.9,2.96134086]
[1760691411676,0.2323,3715.8,3714.8,0.001]
[1760691412057,0.0469192,3715.6,3714.8,0.001]
[1760691412261,0.1344,3715.5,3714.8,2.82732453]
[1760691412594,0.2765,3715.5,3714.8,0.001]
[1760691413098,0.2296,3714.9,3714.8,0.001]
[1760691413293,4.571,3714.9,3714.8,0.001]
[1760691413868,5.12672351,3714.9,3714.8,0.001]
[1760691414192,5.0798,3714.9,3714.8,0.001]
[1760691414395,4.571,3714.9,3714.8,0.001]
[1760691414897,5.0798,3714.9,3714.8,0.001]
[1760691415066,3.9854,3714.9,3714.8,0.001]
[1760691415504,1.1424,3714.9,3714.8,0.001]
[1760691415811,6.13575633,3714.9,3714.8,0.001]
[1760691416793,5.50215633,3714.9,3714.8,0.001]
[1760691417292,3.54188587,3714.9,3714.8,0.001]
[1760691417493,0.46928587,3714.9,3714.8,2.69293496]
[1760691417663,0.42235633,3714.9,3714.8,2.96242846]
[1760691417864,2.843,3715.0,3714.9,2.69186249]
[1760691420567,0.42224609,3715.5,3715.4,2.69150024]
[1760691420981,3.0736,3715.8,3715.5,2.69136777]
[1760691421178,0.2819,3715.7,3714.8,0.001]
[1760691421411,3.0736,3715.8,3714.8,0.001]
[1760691421412,2.844,3715.8,3714.8,0.001]
[1760691421732,0.04691424,3716.0,3715.9,2.69113808]
[1760691422075,0.002,3716.1,3715.9,0.6017321]
[1760691422280,0.002,3716.1,3716.0,2.69106566]
[1760691422931,0.002,3716.1,3715.9,2.69111563]
[1760691423130,0.002,3716.1,3715.8,0.1344]
[1760691423280,0.0705,3715.9,3715.4,0.1344]
[1760691423486,0.1344,3715.6,3715.0,0.1344]
[1760691423720,2.843,3715.5,3714.7,0.001]
[1760691423920,0.1344,3715.3,3714.7,0.1354]
[1760691424283,0.5738,3715.3,3714.7,0.1354]
[1760691424621,0.1344,3715.0,3714.9,2.69185153]
[1760691424824,1.728,3715.4,3714.9,2.69185153]
[1760691424825,1.728,3715.4,3715.3,2.69157268]
[1760691425025,2.843,3715.5,3715.1,0.1909]
[1760691425207,2.843,3715.5,3715.0,0.1344]
[1760691425391,0.4394,3715.4,3715.0,0.1344]
[1760691425586,2.843,3715.5,3715.2,2.69162836]
[1760691425785,2.843,3715.5,3715.0,0.1344]
[1760691426238,2.843,3715.5,3714.7,0.001]
[1760691426427,0.2212,3714.9,3714.7,2.69296087]
[1760691426748,2.843,3714.9,3714.8,2.69293496]
[1760691426962,2.843,3714.9,3714.8,0.49275582]
[1760691427117,2.843,3714.9,3714.8,2.69293496]
[1760691427321,3.0642,3714.9,3714.8,0.001]
[1760691428062,2.843,3714.9,3714.8,0.001]
[1760691429967,2.843,3714.9,3714.8,2.69293496]
[1760691430175,0.04691999,3715.2,3714.8,2.69293496]
[1760691430176,0.42227969,3715.3,3715.1,2.69171758]
[1760691430351,2.843,3715.9,3715.8,2.6912105]
[1760691430670,2.88991108,3715.9,3715.8,2.6912105]
[1760691430821,2.843,3715.9,3715.8,3.1352105]
[1760691431018,0.002,3716.1,3716.0,14.53192666]
[1760691431219,0.002,3716.1,3716.0,12.05265466]
[1760691431473,0.002,3716.1,3716.0,4.86306566]
[1760691431772,0.002,3716.1,3715.9,2.69108672]
[1760691431919,0.002,3716.1,3715.2,0.6349]
[1760691432117,0.728,3716.0,3715.8,2.69114817]
[1760691432317,0.728,3716.0,3715.2,0.6349]
[1760691432517,0.728,3716.0,3715.8,2.69114818]
[1760691433060,0.728,3716.0,3715.9,2.69113808]
[1760691433268,0.002,3716.1,3716.0,2.69106566]
[1760691433472,0.002,3716.1,3716.0,3.13506566]
[1760691434317,0.002,3716.1,3715.2,0.1909]
[1760691434615,0.002,3716.1,3715.9,2.69113139]
[1760691434814,0.002,3716.1,3715.9,2.69110015]
[1760691435027,0.002,3716.1,3715.2,0.21420925]
[1760691435229,0.002,3716.1,3715.2,0.42952092]